[Event "Late-Titled-Tuesday-Blitz-November-28-2023"]
[Site "Chess.com"]
[Date "2023.11.28"]
[Round "11"]
[White "Korchmar_Vasiliy"]
[Black "K_A_S_T_O_R"]
[Result "0-1"]
[WhiteElo "2731"]
[BlackElo "2906"]
[TimeControl "180+1"]
[EndTime "16:03:03 PST"]
[Termination "K_A_S_T_O_R won on time"]

1. e4 {[%clk 0:03:00.9]} 1... c5 {[%clk 0:02:59.6]} 2. d4 {[%clk 0:03:01.3]}
2... cxd4 {[%clk 0:02:59.2]} 3. Qxd4 {[%clk 0:03:02.2]} 3... Nc6 {[%clk
0:02:57.4]} 4. Qd3 {[%clk 0:03:02.7]} 4... g6 {[%clk 0:02:55.3]} 5. Nc3 {[%clk
0:03:03.1]} 5... Bg7 {[%clk 0:02:55.2]} 6. Nf3 {[%clk 0:03:03.8]} 6... d6 {[%clk
0:02:54.3]} 7. Be2 {[%clk 0:03:04.4]} 7... Nf6 {[%clk 0:02:53]} 8. O-O {[%clk
0:03:05.1]} 8... Bg4 {[%clk 0:02:53]} 9. Nd5 {[%clk 0:03:04.5]} 9... Nd7 {[%clk
0:02:45.7]} 10. c3 {[%clk 0:03:04.3]} 10... O-O {[%clk 0:02:44.4]} 11. Bg5
{[%clk 0:03:01.8]} 11... h6 {[%clk 0:02:38.7]} 12. Bh4 {[%clk 0:03:01.8]} 12...
Bxf3 {[%clk 0:02:37.9]} 13. Qxf3 {[%clk 0:03:00]} 13... Nde5 {[%clk 0:02:28.4]}
14. Qe3 {[%clk 0:02:58.8]} 14... g5 {[%clk 0:02:26.7]} 15. Bg3 {[%clk
0:02:58.7]} 15... e6 {[%clk 0:02:27.1]} 16. Nb4 {[%clk 0:02:53.7]} 16... Nxb4
{[%clk 0:02:23.8]} 17. cxb4 {[%clk 0:02:54.6]} 17... Ng6 {[%clk 0:02:21.9]} 18.
Rad1 {[%clk 0:02:44.9]} 18... Be5 {[%clk 0:02:19.7]} 19. Bh5 {[%clk 0:01:52.6]}
19... Nf4 {[%clk 0:02:14.2]} 20. Bf3 {[%clk 0:01:42.3]} 20... Qf6 {[%clk
0:02:10]} 21. b3 {[%clk 0:01:35.1]} 21... Rfc8 {[%clk 0:02:06.6]} 22. Rd2 {[%clk
0:01:26.9]} 22... Rc3 {[%clk 0:02:02]} 23. Qe1 {[%clk 0:01:26.9]} 23... Rac8
{[%clk 0:02:00.2]} 24. Qd1 {[%clk 0:01:26.3]} 24... b6 {[%clk 0:01:52]} 25. Be2
{[%clk 0:01:00.8]} 25... Nxe2+ {[%clk 0:01:27.2]} 26. Qxe2 {[%clk 0:00:59.2]}
26... Kh7 {[%clk 0:01:24.4]} 27. Rfd1 {[%clk 0:00:56.6]} 27... Rc1 {[%clk
0:01:22.5]} 28. Qh5 {[%clk 0:00:42]} 28... Kg7 {[%clk 0:01:15.5]} 29. Qg4 {[%clk
0:00:39]} 29... Qg6 {[%clk 0:01:08.7]} 30. Bxe5+ {[%clk 0:00:35.5]} 30... dxe5
{[%clk 0:01:09]} 31. h3 {[%clk 0:00:28.6]} 31... Qf6 {[%clk 0:00:59.8]} 32. g3
{[%clk 0:00:20.9]} 32... R8c2 {[%clk 0:00:45.8]} 33. Kg2 {[%clk 0:00:16.6]}
33... Rc3 {[%clk 0:00:41.1]} 34. Qe2 {[%clk 0:00:08.8]} 34... Rxd1 {[%clk
0:00:38.8]} 35. Qxd1 {[%clk 0:00:07.9]} 35... Qg6 {[%clk 0:00:38.7]} 36. Qe2
{[%clk 0:00:08]} 36... Rc7 {[%clk 0:00:33.9]} 37. a4 {[%clk 0:00:07.5]} 37... h5
{[%clk 0:00:31.5]} 38. a5 {[%clk 0:00:07]} 38... Rc3 {[%clk 0:00:28]} 39. a6
{[%clk 0:00:05.5]} 39... Rxb3 {[%clk 0:00:23.4]} 40. Rd7 {[%clk 0:00:05.8]}
40... Rxb4 {[%clk 0:00:18.9]} 41. Rxa7 {[%clk 0:00:04.1]} 41... Rxe4 {[%clk
0:00:19.5]} 42. Qf3 {[%clk 0:00:01.4]} 42... Ra4 {[%clk 0:00:17.3]} 43. Ra8
{[%clk 0:00:01.3]} 43... g4 {[%clk 0:00:17.3]} 44. hxg4 {[%clk 0:00:01.3]} 44...
hxg4 {[%clk 0:00:17.9]} 45. Qe3 {[%clk 0:00:01.7]} 45... Qe4+ {[%clk 0:00:12.3]}
46. Qxe4 {[%clk 0:00:01.7]} 46... Rxe4 {[%clk 0:00:13]} 47. Rb8 {[%clk
0:00:02.6]} 47... Ra4 {[%clk 0:00:13.7]} 48. Rxb6 {[%clk 0:00:02.9]} 48... Kg6
{[%clk 0:00:12.8]} 49. Kf1 {[%clk 0:00:02.7]} 49... Kf5 {[%clk 0:00:12.1]} 50.
Ke2 {[%clk 0:00:03]} 50... f6 {[%clk 0:00:12.6]} 51. Rc6 {[%clk 0:00:03]} 51...
e4 {[%clk 0:00:11]} 52. Rb6 {[%clk 0:00:02]} 52... Ke5 {[%clk 0:00:11.2]} 53.
Rb5+ {[%clk 0:00:01.6]} 53... Kd4 {[%clk 0:00:11.3]} 54. Rb6 {[%clk 0:00:02]}
54... Kd5 {[%clk 0:00:11.7]} 55. Ke3 {[%clk 0:00:01.1]} 55... Ra3+ {[%clk
0:00:11]} 56. Ke2 {[%clk 0:00:01.7]} 56... f5 {[%clk 0:00:10.9]} 57. Ke1 {[%clk
0:00:01]} 57... e5 {[%clk 0:00:09.9]} 58. Ke2 {[%clk 0:00:01.4]} 58... f4 {[%clk
0:00:09.8]} 0-1

[Event "Late-Titled-Tuesday-Blitz-November-28-2023"]
[Site "Chess.com"]
[Date "2023.11.28"]
[Round "11"]
[White "Hrant_ChessMood"]
[Black "CSB7"]
[Result "1-0"]
[WhiteElo "2924"]
[BlackElo "2689"]
[TimeControl "180+1"]
[EndTime "16:03:08 PST"]
[Termination "Hrant_ChessMood won by resignation"]

1. e4 {[%clk 0:02:53.5]} 1... e5 {[%clk 0:02:56.4]} 2. Nf3 {[%clk 0:02:51.2]}
2... Nc6 {[%clk 0:02:56.9]} 3. Bc4 {[%clk 0:02:51.1]} 3... Bc5 {[%clk
0:02:55.4]} 4. d3 {[%clk 0:02:50]} 4... Nf6 {[%clk 0:02:55.3]} 5. O-O {[%clk
0:02:35.7]} 5... O-O {[%clk 0:02:55]} 6. h3 {[%clk 0:02:35.9]} 6... Re8 {[%clk
0:02:48]} 7. a4 {[%clk 0:02:33.8]} 7... h6 {[%clk 0:02:41.2]} 8. a5 {[%clk
0:02:33.2]} 8... d5 {[%clk 0:02:30.5]} 9. exd5 {[%clk 0:02:32.4]} 9... Nxd5
{[%clk 0:02:31.4]} 10. c3 {[%clk 0:02:31.4]} 10... Be6 {[%clk 0:01:58.1]} 11. b4
{[%clk 0:02:30.2]} 11... Bd6 {[%clk 0:01:58.7]} 12. Qb3 {[%clk 0:02:27.6]} 12...
Nf6 {[%clk 0:01:40.5]} 13. Nbd2 {[%clk 0:02:21.6]} 13... a6 {[%clk 0:01:34.5]}
14. Ne4 {[%clk 0:02:18.5]} 14... Nxe4 {[%clk 0:01:31.6]} 15. dxe4 {[%clk
0:02:16]} 15... Qf6 {[%clk 0:01:28.1]} 16. Bxe6 {[%clk 0:02:09.6]} 16... Qxe6
{[%clk 0:01:27.7]} 17. Qxe6 {[%clk 0:02:08.7]} 17... Rxe6 {[%clk 0:01:28.6]} 18.
Be3 {[%clk 0:02:09.4]} 18... f6 {[%clk 0:01:21.3]} 19. Nd2 {[%clk 0:02:07.6]}
19... Kf7 {[%clk 0:01:18.8]} 20. Nb3 {[%clk 0:02:05.8]} 20... Rd8 {[%clk
0:01:10.6]} 21. Bc5 {[%clk 0:02:04.8]} 21... Ree8 {[%clk 0:00:59]} 22. Rfd1
{[%clk 0:02:01.1]} 22... Ke7 {[%clk 0:00:50]} 23. Rd5 {[%clk 0:01:55.4]} 23...
Nb8 {[%clk 0:00:38.9]} 24. Rad1 {[%clk 0:01:51.8]} 24... Bxc5 {[%clk 0:00:36.6]}
25. Nxc5 {[%clk 0:01:47.8]} 25... Rxd5 {[%clk 0:00:36.2]} 26. exd5 {[%clk
0:01:44.4]} 26... b6 {[%clk 0:00:22.3]} 27. axb6 {[%clk 0:01:39.4]} 27... cxb6
{[%clk 0:00:23.2]} 28. Na4 {[%clk 0:01:32.8]} 28... Nd7 {[%clk 0:00:20.9]} 29.
c4 {[%clk 0:01:21.3]} 29... b5 {[%clk 0:00:14.7]} 30. d6+ {[%clk 0:01:18.2]}
30... Ke6 {[%clk 0:00:13.5]} 31. Nc5+ {[%clk 0:01:12.3]} 31... Nxc5 {[%clk
0:00:13.4]} 32. bxc5 {[%clk 0:01:13.2]} 32... Kd7 {[%clk 0:00:07.3]} 33. Ra1
{[%clk 0:01:10.9]} 33... Rc8 {[%clk 0:00:07.4]} 34. Rxa6 {[%clk 0:00:59.1]}
34... Rxc5 {[%clk 0:00:07.6]} 35. cxb5 {[%clk 0:00:54.2]} 35... Rxb5 {[%clk
0:00:08.5]} 36. Ra7+ {[%clk 0:00:54.9]} 36... Kxd6 {[%clk 0:00:09]} 37. Rxg7
{[%clk 0:00:55.8]} 37... Ke6 {[%clk 0:00:05.1]} 38. Rh7 {[%clk 0:00:55.9]} 38...
Rb1+ {[%clk 0:00:04.6]} 39. Kh2 {[%clk 0:00:56.5]} 39... Rb2 {[%clk 0:00:03.6]}
40. f3 {[%clk 0:00:56.3]} 40... e4 {[%clk 0:00:03.5]} 41. fxe4 {[%clk
0:00:56.2]} 41... Re2 {[%clk 0:00:04.1]} 42. Rxh6 {[%clk 0:00:53.2]} 42... Rxe4
{[%clk 0:00:04.7]} 43. g4 {[%clk 0:00:52.9]} 43... Kf7 {[%clk 0:00:04.6]} 44.
Kg3 {[%clk 0:00:52.3]} 44... Kg7 {[%clk 0:00:04.6]} 45. Rh5 {[%clk 0:00:52.5]}
45... Re3+ {[%clk 0:00:04.3]} 46. Kh4 {[%clk 0:00:52.3]} 46... Ra3 {[%clk
0:00:03]} 47. Rb5 {[%clk 0:00:52.6]} 47... Kg6 {[%clk 0:00:03.5]} 48. Rb6 {[%clk
0:00:53.1]} 48... Rc3 {[%clk 0:00:02.4]} 49. Rb4 {[%clk 0:00:51.9]} 49... Rd3
{[%clk 0:00:02.3]} 50. Rf4 {[%clk 0:00:51.8]} 50... Rc3 {[%clk 0:00:02.3]} 51.
Rf1 {[%clk 0:00:51.9]} 51... Rd3 {[%clk 0:00:02.6]} 52. Rg1 {[%clk 0:00:52.4]}
52... Rc3 {[%clk 0:00:02.8]} 53. Rg3 {[%clk 0:00:53.1]} 53... Rc1 {[%clk
0:00:02.8]} 54. Rf3 {[%clk 0:00:53.1]} 54... Rg1 {[%clk 0:00:03]} 55. Rf2 {[%clk
0:00:52.6]} 55... Rh1 {[%clk 0:00:01.5]} 56. Kg3 {[%clk 0:00:52.8]} 56... Rg1+
{[%clk 0:00:02.1]} 57. Kh2 {[%clk 0:00:52.1]} 57... Ra1 {[%clk 0:00:02.7]} 58.
h4 {[%clk 0:00:52.7]} 58... Ra3 {[%clk 0:00:03]} 59. Kg2 {[%clk 0:00:52.4]}
59... Rb3 {[%clk 0:00:03.3]} 60. Rf3 {[%clk 0:00:52.6]} 60... Rb2+ {[%clk
0:00:03.5]} 61. Kg3 {[%clk 0:00:53]} 61... Rb4 {[%clk 0:00:04.1]} 62. h5+ {[%clk
0:00:52.1]} 62... Kg7 {[%clk 0:00:04.6]} 63. Ra3 {[%clk 0:00:51.6]} 63... Kh6
{[%clk 0:00:04.6]} 64. Ra6 {[%clk 0:00:50.6]} 64... Kg5 {[%clk 0:00:04.5]} 65.
Ra5+ {[%clk 0:00:50.6]} 65... Kh6 {[%clk 0:00:04.9]} 66. Ra8 {[%clk 0:00:51.3]}
66... Rb1 {[%clk 0:00:03]} 67. Rg8 {[%clk 0:00:50.8]} 67... Kh7 {[%clk
0:00:03.2]} 68. Rg6 {[%clk 0:00:49.3]} 68... Rb6 {[%clk 0:00:02.8]} 69. Kf4
{[%clk 0:00:46.3]} 69... Ra6 {[%clk 0:00:01.5]} 70. Kf5 {[%clk 0:00:46.8]} 70...
Ra5+ {[%clk 0:00:01.6]} 71. Kxf6 {[%clk 0:00:47.3]} 71... Ra6+ {[%clk
0:00:02.2]} 72. Kg5 {[%clk 0:00:46.9]} 72... Ra5+ {[%clk 0:00:02.8]} 73. Kh4
{[%clk 0:00:47.2]} 73... Ra1 {[%clk 0:00:03.4]} 74. Rb6 {[%clk 0:00:47.1]} 74...
Ra5 {[%clk 0:00:03]} 75. Rb7+ {[%clk 0:00:45.1]} 75... Kh6 {[%clk 0:00:02.6]}
76. g5+ {[%clk 0:00:45.5]} 76... Rxg5 {[%clk 0:00:02.1]} 77. Rb6+ {[%clk
0:00:46.2]} 77... Kh7 {[%clk 0:00:02.9]} 78. Kxg5 {[%clk 0:00:46.4]} 1-0

[Event "Late-Titled-Tuesday-Blitz-November-28-2023"]
[Site "Chess.com"]
[Date "2023.11.28"]
[Round "11"]
[White "HajiyevKanan"]
[Black "Sulthankan"]
[Result "0-1"]
[WhiteElo "2473"]
[BlackElo "2394"]
[TimeControl "180+1"]
[EndTime "16:03:18 PST"]
[Termination "Sulthankan won by resignation"]

1. d4 {[%clk 0:03:00.9]} 1... Nf6 {[%clk 0:02:59.8]} 2. Nf3 {[%clk 0:03:01.8]}
2... g6 {[%clk 0:02:59.3]} 3. c4 {[%clk 0:03:02.7]} 3... Bg7 {[%clk 0:02:59.4]}
4. g3 {[%clk 0:03:03.5]} 4... O-O {[%clk 0:02:59.5]} 5. Bg2 {[%clk 0:03:04.4]}
5... d5 {[%clk 0:03:00.2]} 6. O-O {[%clk 0:03:04.9]} 6... Nc6 {[%clk 0:03:00.7]}
7. cxd5 {[%clk 0:03:02.7]} 7... Nxd5 {[%clk 0:03:01.6]} 8. e4 {[%clk 0:03:03.1]}
8... Nb6 {[%clk 0:03:02]} 9. d5 {[%clk 0:03:03.4]} 9... Na5 {[%clk 0:03:02.6]}
10. Nc3 {[%clk 0:02:55]} 10... c6 {[%clk 0:03:01.7]} 11. Re1 {[%clk 0:02:50.1]}
11... Bg4 {[%clk 0:02:55]} 12. h3 {[%clk 0:02:48.9]} 12... Bxf3 {[%clk
0:02:55.3]} 13. Bxf3 {[%clk 0:02:49.8]} 13... Re8 {[%clk 0:02:45.8]} 14. h4
{[%clk 0:02:45.1]} 14... Rc8 {[%clk 0:02:34.2]} 15. h5 {[%clk 0:02:44.2]} 15...
cxd5 {[%clk 0:02:32.8]} 16. exd5 {[%clk 0:02:44.1]} 16... Nac4 {[%clk
0:02:24.9]} 17. Kg2 {[%clk 0:02:39.4]} 17... Nxb2 {[%clk 0:01:54.9]} 18. Bxb2
{[%clk 0:02:36]} 18... Bxc3 {[%clk 0:01:50]} 19. Bxc3 {[%clk 0:02:35.7]} 19...
Rxc3 {[%clk 0:01:50.9]} 20. Qd2 {[%clk 0:02:24.8]} 20... Rxf3 {[%clk 0:01:36.2]}
21. Kxf3 {[%clk 0:02:25.7]} 21... Qxd5+ {[%clk 0:01:33.4]} 22. Qxd5 {[%clk
0:02:23.8]} 22... Nxd5 {[%clk 0:01:34.3]} 23. Rab1 {[%clk 0:02:24.2]} 23... b6
{[%clk 0:01:32.8]} 24. a4 {[%clk 0:02:21.1]} 24... a5 {[%clk 0:01:09.2]} 25.
Rbd1 {[%clk 0:02:10.1]} 25... Rd8 {[%clk 0:01:07.9]} 26. Rxe7 {[%clk 0:02:05.7]}
26... Rd6 {[%clk 0:01:07.9]} 27. h6 {[%clk 0:01:57.3]} 27... Kf8 {[%clk
0:01:01.5]} 28. Rb7 {[%clk 0:01:48.4]} 28... g5 {[%clk 0:00:55.7]} 29. Rd4
{[%clk 0:01:35]} 29... Ke8 {[%clk 0:00:35.9]} 30. g4 {[%clk 0:01:03.6]} 30...
Rf6+ {[%clk 0:00:27.6]} 31. Kg3 {[%clk 0:01:01.1]} 31... Nf4 {[%clk 0:00:25.1]}
32. Re4+ {[%clk 0:00:50.8]} 32... Kd8 {[%clk 0:00:25.3]} 33. Rbe7 {[%clk
0:00:41.4]} 33... Rxh6 {[%clk 0:00:24.1]} 34. Re8+ {[%clk 0:00:27.2]} 34... Kd7
{[%clk 0:00:24.1]} 35. R4e7+ {[%clk 0:00:28.1]} 35... Kd6 {[%clk 0:00:24.1]} 36.
Kf3 {[%clk 0:00:28.7]} 36... Rf6 {[%clk 0:00:18.2]} 37. Ke4 {[%clk 0:00:27.2]}
37... Re6+ {[%clk 0:00:13.5]} 38. Rxe6+ {[%clk 0:00:25.4]} 38... Nxe6 {[%clk
0:00:14.4]} 39. Rh8 {[%clk 0:00:16.7]} 39... Nc5+ {[%clk 0:00:14.6]} 40. Kd4
{[%clk 0:00:13.8]} 40... Nxa4 {[%clk 0:00:14.6]} 41. Rxh7 {[%clk 0:00:14.5]}
41... Ke6 {[%clk 0:00:13]} 42. Rh6+ {[%clk 0:00:14.4]} 42... f6 {[%clk
0:00:12.3]} 43. Rh8 {[%clk 0:00:10.6]} 43... Nc5 {[%clk 0:00:12.5]} 44. Rb8
{[%clk 0:00:08.1]} 44... Nd7 {[%clk 0:00:11.1]} 45. Re8+ {[%clk 0:00:07.3]}
45... Kd6 {[%clk 0:00:11.3]} 46. Rd8 {[%clk 0:00:05.9]} 46... b5 {[%clk
0:00:10.8]} 47. Rh8 {[%clk 0:00:06.6]} 47... Ne5 {[%clk 0:00:09]} 48. Rd8+
{[%clk 0:00:04.6]} 48... Kc7 {[%clk 0:00:09.3]} 49. Rf8 {[%clk 0:00:04.2]} 49...
Nxg4 {[%clk 0:00:09.7]} 50. Ke4 {[%clk 0:00:04.4]} 50... Nxf2+ {[%clk
0:00:09.5]} 51. Kd5 {[%clk 0:00:05]} 51... Ng4 {[%clk 0:00:06.9]} 52. Kc5 {[%clk
0:00:04.7]} 52... b4 {[%clk 0:00:06.3]} 53. Kc4 {[%clk 0:00:05.4]} 53... Kd6
{[%clk 0:00:05.9]} 54. Kb5 {[%clk 0:00:04.2]} 54... b3 {[%clk 0:00:06]} 55. Kxa5
{[%clk 0:00:04.5]} 55... Ke5 {[%clk 0:00:05.6]} 56. Rb8 {[%clk 0:00:03.9]} 56...
Ne3 {[%clk 0:00:05.8]} 57. Rxb3 {[%clk 0:00:04.4]} 57... Kf4 {[%clk 0:00:06.4]}
58. Rb4+ {[%clk 0:00:04.5]} 58... Kf3 {[%clk 0:00:06.9]} 59. Rb6 {[%clk
0:00:04.1]} 59... f5 {[%clk 0:00:07]} 60. Kb5 {[%clk 0:00:04.2]} 60... g4 {[%clk
0:00:07.5]} 61. Kc5 {[%clk 0:00:04.3]} 61... g3 {[%clk 0:00:08.1]} 62. Kd4
{[%clk 0:00:04.8]} 62... g2 {[%clk 0:00:08.4]} 63. Rg6 {[%clk 0:00:05.3]} 63...
Ng4 {[%clk 0:00:07.6]} 64. Rf6 {[%clk 0:00:06]} 64... Kf4 {[%clk 0:00:06.7]} 65.
Rg6 {[%clk 0:00:06.1]} 65... g1=Q+ {[%clk 0:00:07]} 66. Kd5 {[%clk 0:00:06.8]}
66... Qd1+ {[%clk 0:00:07.1]} 67. Ke6 {[%clk 0:00:07.7]} 67... Qe2+ {[%clk
0:00:06.3]} 68. Kf7 {[%clk 0:00:08.6]} 68... Ne5+ {[%clk 0:00:06.3]} 69. Kf6
{[%clk 0:00:08.4]} 69... Nxg6 {[%clk 0:00:07.2]} 70. Kxg6 {[%clk 0:00:09.3]}
70... Qa2 {[%clk 0:00:08.1]} 71. Kf6 {[%clk 0:00:09.6]} 71... Ke4 {[%clk
0:00:09]} 72. Kg6 {[%clk 0:00:10.5]} 72... f4 {[%clk 0:00:09.9]} 0-1

[Event "Late-Titled-Tuesday-Blitz-November-28-2023"]
[Site "Chess.com"]
[Date "2023.11.28"]
[Round "11"]
[White "NigelDwarf"]
[Black "Fortitudine"]
[Result "0-1"]
[WhiteElo "2530"]
[BlackElo "2413"]
[TimeControl "180+1"]
[EndTime "16:03:21 PST"]
[Termination "Fortitudine won by resignation"]

1. e4 {[%clk 0:02:53.6]} 1... c5 {[%clk 0:02:58.7]} 2. d4 {[%clk 0:02:52.7]}
2... cxd4 {[%clk 0:02:58.7]} 3. c3 {[%clk 0:02:49.4]} 3... d3 {[%clk 0:02:59]}
4. Bxd3 {[%clk 0:02:48.3]} 4... Nc6 {[%clk 0:02:59.7]} 5. Ne2 {[%clk 0:02:46.2]}
5... d6 {[%clk 0:02:59]} 6. O-O {[%clk 0:02:46.3]} 6... g6 {[%clk 0:02:59.7]} 7.
c4 {[%clk 0:02:44.9]} 7... Bd7 {[%clk 0:02:57.2]} 8. Nbc3 {[%clk 0:02:45.3]}
8... Rc8 {[%clk 0:02:57.5]} 9. b3 {[%clk 0:02:44.7]} 9... Bg7 {[%clk 0:02:57.6]}
10. Bb2 {[%clk 0:02:45.2]} 10... Nf6 {[%clk 0:02:58.2]} 11. f3 {[%clk 0:02:43]}
11... O-O {[%clk 0:02:58.6]} 12. Qd2 {[%clk 0:02:40.9]} 12... a6 {[%clk
0:02:46.9]} 13. Rac1 {[%clk 0:02:33.8]} 13... Ne5 {[%clk 0:02:42.4]} 14. Bb1
{[%clk 0:02:33.2]} 14... b5 {[%clk 0:02:40.1]} 15. cxb5 {[%clk 0:02:31.7]} 15...
axb5 {[%clk 0:02:41]} 16. f4 {[%clk 0:02:19]} 16... Neg4 {[%clk 0:02:22.1]} 17.
h3 {[%clk 0:02:10.2]} 17... Qb6+ {[%clk 0:02:14.4]} 18. Qd4 {[%clk 0:01:55.5]}
18... Qxd4+ {[%clk 0:02:05.8]} 19. Nxd4 {[%clk 0:01:56.4]} 19... b4 {[%clk
0:01:51]} 20. hxg4 {[%clk 0:01:55.3]} 20... bxc3 {[%clk 0:01:50.4]} 21. Rxc3
{[%clk 0:01:52.5]} 21... Rxc3 {[%clk 0:01:48.1]} 22. Bxc3 {[%clk 0:01:52]} 22...
Nxg4 {[%clk 0:01:44.5]} 23. Rc1 {[%clk 0:01:31.6]} 23... Rc8 {[%clk 0:01:35.4]}
24. Ne2 {[%clk 0:01:30.6]} 24... Bh6 {[%clk 0:00:59.7]} 25. g3 {[%clk
0:01:24.3]} 25... Bb5 {[%clk 0:00:55.5]} 26. Bd4 {[%clk 0:01:18.7]} 26... Ra8
{[%clk 0:00:41.5]} 27. Nc3 {[%clk 0:01:15.2]} 27... Bd7 {[%clk 0:00:42]} 28. Nd5
{[%clk 0:01:11.1]} 28... e5 {[%clk 0:00:42.1]} 29. Bb2 {[%clk 0:00:53.6]} 29...
Be6 {[%clk 0:00:37.9]} 30. Nc7 {[%clk 0:00:45.3]} 30... Rb8 {[%clk 0:00:30.6]}
31. Nxe6 {[%clk 0:00:42.7]} 31... fxe6 {[%clk 0:00:31.5]} 32. Rc6 {[%clk
0:00:36.1]} 32... exf4 {[%clk 0:00:31.9]} 33. Rxd6 {[%clk 0:00:35.7]} 33... f3
{[%clk 0:00:24.3]} 34. Bd4 {[%clk 0:00:30.1]} 34... Rc8 {[%clk 0:00:21.5]} 35.
Bd3 {[%clk 0:00:23.4]} 35... Rc1+ {[%clk 0:00:21.2]} 36. Bf1 {[%clk 0:00:20.6]}
36... Be3+ {[%clk 0:00:17]} 37. Bxe3 {[%clk 0:00:20.6]} 37... Nxe3 {[%clk
0:00:17.9]} 38. Kf2 {[%clk 0:00:18.9]} 38... Nxf1 {[%clk 0:00:16.5]} 39. Kxf3
{[%clk 0:00:18.8]} 39... Rc2 {[%clk 0:00:14]} 40. a4 {[%clk 0:00:17.6]} 40...
Nd2+ {[%clk 0:00:14.7]} 41. Kf4 {[%clk 0:00:16.9]} 41... Nxb3 {[%clk 0:00:14.9]}
42. Rxe6 {[%clk 0:00:17.1]} 42... Kf7 {[%clk 0:00:15.2]} 43. Ra6 {[%clk
0:00:16.6]} 43... Nd4 {[%clk 0:00:15.6]} 44. Ke5 {[%clk 0:00:14.5]} 44... Nf3+
{[%clk 0:00:15.6]} 45. Kf4 {[%clk 0:00:14.7]} 45... Nd2 {[%clk 0:00:14.5]} 46.
Ra7+ {[%clk 0:00:14.7]} 46... Kf6 {[%clk 0:00:13.7]} 47. e5+ {[%clk 0:00:11.2]}
47... Ke6 {[%clk 0:00:14]} 48. Rxh7 {[%clk 0:00:11.3]} 48... Rc4+ {[%clk
0:00:13.4]} 49. Kg5 {[%clk 0:00:11.6]} 49... Ne4+ {[%clk 0:00:12.3]} 50. Kxg6
{[%clk 0:00:11.5]} 50... Nxg3 {[%clk 0:00:12.5]} 51. a5 {[%clk 0:00:09.2]} 51...
Ra4 {[%clk 0:00:12.4]} 52. Ra7 {[%clk 0:00:06.9]} 52... Kxe5 {[%clk 0:00:12.3]}
53. a6 {[%clk 0:00:07.1]} 53... Ne4 {[%clk 0:00:12.6]} 54. Kf7 {[%clk
0:00:06.7]} 54... Nd6+ {[%clk 0:00:12.3]} 55. Kf8 {[%clk 0:00:06.1]} 55... Nb5
{[%clk 0:00:12.6]} 56. Ra8 {[%clk 0:00:05.6]} 56... Nc7 {[%clk 0:00:13.2]} 57.
Ra7 {[%clk 0:00:05.4]} 57... Kd6 {[%clk 0:00:13.5]} 58. Rb7 {[%clk 0:00:04.5]}
58... Rxa6 {[%clk 0:00:12.6]} 59. Kg7 {[%clk 0:00:04.2]} 59... Kc6 {[%clk
0:00:12.1]} 60. Rb8 {[%clk 0:00:04.3]} 60... Ra7 {[%clk 0:00:10.9]} 61. Kh6
{[%clk 0:00:04]} 61... Nd5 {[%clk 0:00:10.5]} 62. Kg5 {[%clk 0:00:04.4]} 62...
Rc7 {[%clk 0:00:09.9]} 63. Rd8 {[%clk 0:00:04.3]} 63... Re7 {[%clk 0:00:09.5]}
64. Rh8 {[%clk 0:00:04]} 64... Kd6 {[%clk 0:00:09.9]} 65. Rh6+ {[%clk
0:00:04.4]} 65... Ke5 {[%clk 0:00:10.6]} 66. Rg6 {[%clk 0:00:04]} 66... Ne3
{[%clk 0:00:10.1]} 67. Rg8 {[%clk 0:00:04.2]} 67... Nf5 {[%clk 0:00:10.2]} 68.
Rg6 {[%clk 0:00:03.6]} 68... Rh7 {[%clk 0:00:09.4]} 69. Kg4 {[%clk 0:00:03.2]}
69... Ne3+ {[%clk 0:00:09.3]} 70. Kg3 {[%clk 0:00:03.7]} 70... Rh5 {[%clk
0:00:08.2]} 71. Rg4 {[%clk 0:00:03.2]} 71... Nxg4 {[%clk 0:00:07.8]} 72. Kxg4
{[%clk 0:00:03.3]} 72... Rf5 {[%clk 0:00:08.7]} 0-1